Cogmind - Beta 17.1 @@@ ROGUE MODE // 2026.08.25 @ 14:02:17 Player: THN-L0C Result: Destroyed by Chaos Wyrm with Ragnarok Missile Launcher Performance ------------- Evolutions (0) 0 Regions Visited (3) 600 Robots Destroyed (13) 65 Value Destroyed (300) 300 Prototype IDs (2) 40 Alien Tech Used (0) 0 Bonus (5616) 5616 TOTAL SCORE: 6621 Bonus ------- Follower Combat Kills 66 Prayed to X0-1V1 5000 Major X0-1V1 Interference 550 Cogmind --------- Core Integrity 0/150 Matter 645/700 Energy 1000/1000 System Corruption 0% Temperature Cool (0) Movement Rolling (95) Ox1 Location -8/Scraptown Parts ------- > --- POWER (1) -------- (None) > --- PROPULSION (2) --- Light Treads Wheel > --- UTILITY (2) ------ Medium Storage Unit X0-1V1's Piety Tracker > --- WEAPON (2) ------- High-powered Shotgun Hypervelocity Gauss Rifle > --- INVENTORY (10) --- Light Treads Spiked Treads Large Matter Pod (77) Improved Terrain Scanner Seismic Detector Improved Hacking Suite Field Recycling Unit (0) Makeshift Laser Multitool Ripper Peak State ------------ > --- POWER ------------ Light Nuclear Core > --- PROPULSION ------- Light Treads Spiked Treads > --- UTILITY ---------- Medium Storage Unit X0-1V1's Piety Tracker > --- WEAPON ----------- High-powered Shotgun Hypervelocity Gauss Rifle > --- INVENTORY -------- Subdweller Power Source Light Treads Wheel Large Matter Pod Improved Terrain Scanner Seismic Detector Riot Gun Makeshift Laser Multitool Ripper [Rating: 30] Favorites ----------- Power Ion Engine Engine Ion Engine Power Core Light Nuclear Core Propulsion Light Treads Treads Light Treads Wheel Wheel Utility Medium Storage Unit Device X0-1V1's Piety Tracker Storage Medium Storage Unit Processor Transport Network Coupler Weapon Assault Rifle Ballistic Gun Assault Rifle Slashing Weapon Ripper Build | -11 -10 -10 -8 ------- Run | Yrd Mat Sub Scr Slots Evolved . | . . . . Power . | . . . . Propulsion . | . . . . Utility . | . . . . Weapon . | . . . . Parts Attached 20 | 6 3 8 3 Power 3 | 1 . 1 1 Engine 2 | 1 . 1 . Core 1 | . . . 1 Reactor . | . . . . Propulsion 6 | 2 . 4 . Treads 4 | . . 4 . Leg . | . . . . Wheel 2 | 2 . . . Hover . | . . . . Flight . | . . . . Utility 4 | 1 3 . . Device 1 | . 1 . . Storage 2 | 1 1 . . Processor 1 | . 1 . . Hackware . | . . . . Protection . | . . . . Artifact . | . . . . Weapon 7 | 2 . 3 2 Energy Gun . | . . . . Energy Cannon . | . . . . Ballistic Gun 6 | 2 . 2 2 Ballistic Cannon . | . . . . Launcher . | . . . . Special Weapon . | . . . . Impact Weapon . | . . . . Slashing Weapon 1 | . . 1 . Piercing Weapon . | . . . . Special Melee Weapon . | . . . . Unidentified Prototypes 1 | . 1 . . Parts Lost 2 | . . 1 1 Power 2 | . . 1 1 Propulsion . | . . . . Utility . | . . . . Weapon . | . . . . Highest Loss Streak 1 | . . 1 1 To Critical Strikes . | . . . . Average Backups 9 | 2 8 9 9 Power . | . . . . Propulsion 3 | 1 4 3 2 Utility 3 | . 3 3 3 Weapon 1 | . . 2 2 Tool/Special . | . . . . Unused Backups 13 | . . 4 9 Power . | . . . . Propulsion 2 | . . 1 1 Utility 6 | . . 1 5 Weapon 4 | . . 2 2 Tool/Special 1 | . . . 1 Average Slot Usage (%) 99 | . 94 99 100 Engine 10 | . 14 13 1 Core 3 | . . . 12 Treads 21 | . . 26 17 Wheel 6 | . 28 1 10 Device 12 | . . 14 14 Storage 14 | . 14 14 14 Processor 1 | . 9 . . Ballistic Gun 23 | . 28 20 28 Slashing Weapon 4 | . . 7 . Peak Build Rating 30 | 6 20 24 30 Average Rating 21 | 5 7 22 28 On Entrance 12 | . 6 20 24 Avg Prop Armor Cover (%) 11 | . . . 11 Naked Turns . | . . . . Heaviest Build 25 | 13 19 22 25 Greatest Support 40 | 20 20 40 40 Greatest Overweight (x) 2 | . . . 2 Average Overweight (x) . | . . . 1 Largest Inventory Capacity 10 | 8 10 10 10 Average Capacity 9 | 7 9 10 10 Most Carried 10 | 5 10 10 10 Average Carried 9 | 2 8 9 9 Final Capacity 10 | 8 10 10 10 Final Carried 10 | 5 10 10 10 Class Distribution -------------------- 100% | Mutant Dominant Class ---------------- Mutant | -10/Materials Mutant | -10/Subcaves Mutant | -8/Scraptown Resources | -11 -10 -10 -8 ----------- Run | Yrd Mat Sub Scr Matter Collected 1081 | 304 88 432 257 Remotely . | . . . . Salvage Created 534 | 177 72 285 . Parts 35 | 13 4 18 . Haulers Intercepted 1 | . 1 . . Recyclers Shooed 1 | 1 . . . Parts Field Recycled . | . . . . Retrieved Matter . | . . . . Parts Self-Destructed 19 | . . 19 . Prevented . | . . . . Parts Restored . | . . . . Kills | -11 -10 -10 -8 ------- Run | Yrd Mat Sub Scr Combat Hostiles Destroyed 6 | . . 6 . Guns 6 | . . 6 . Classes Destroyed 8 | 2 2 4 . Tunneler 4 | 4 . . . Hauler 1 | . 1 . . Recycler 1 | 1 . . . Watcher 1 | . 1 . . Grunt 1 | . . 1 . Sentry 1 | . . 1 . Artisan 1 | . . 1 . Subdweller 4 | . . 4 . Best Kill Streak 5 | 5 1 2 . Combat Bots Only 2 | . . 2 . Max Kills in Single Turn 1 | 1 1 1 . Gunslinging . | . . . . Exploded . | . . . . Melee . | . . . . Uniques/NPCs Destroyed . | . . . . Combat | -11 -10 -10 -8 -------- Run | Yrd Mat Sub Scr Hostile Shots Fired 54 | . . 54 . Missed 18 | . . 18 . Hits 36 | . . 36 . Projectile 36 | . . 36 . Damage Taken 573 | . . 521 52 Core 169 | . . 144 25 Absorbed by Shields . | . . . . Core Remaining (%) 100 | 100 . . . Volleys Fired 39 | 11 5 21 2 Largest 2 | 2 2 2 1 Hottest 50 | 40 40 50 33 Shots Fired 76 | 22 10 42 2 Gun 76 | 22 10 42 2 Cannon . | . . . . Launcher . | . . . . Special . | . . . . Kinetic 76 | 22 10 42 2 Thermal . | . . . . Explosive . | . . . . Electromagnetic . | . . . . Robot Hit Streak 20 | 6 2 20 8 Robot Miss Streak 2 | 2 2 1 . Penetration Max . | . . . . Secondary Targets . | . . . . Shots Hit Robots 51 | 12 5 32 2 Core Hits 23 | 7 3 13 . Critical Kills . | . . . . Critical Parts Destroyed 1 | . . 1 . Critical Strikes 1 | . . 1 . Destroy 1 | . . 1 . Melee Attacks 25 | . . 25 . Impact . | . . . . Slashing 25 | . . 25 . Piercing . | . . . . Sneak Attacks . | . . . . Combat Hostiles . | . . . . Follow-up Attacks . | . . . . Damage Inflicted 600 | 122 52 412 14 Guns 600 | 122 52 412 14 Cannons . | . . . . Explosions . | . . . . Melee . | . . . . Ramming . | . . . . Kinetic 600 | 122 52 412 14 Thermal . | . . . . Explosive . | . . . . Electromagnetic . | . . . . Impact . | . . . . Slashing . | . . . . Piercing . | . . . . Highest Corruption 4 | . 1 4 . Average Corruption 3 | . 1 3 . Corruption Purged . | . . . . Corruption Blocked . | . . . . Effects 20 | . 1 19 . Message Errors 3 | . . 3 . Matter Fused 4 | . . 4 . Heat Flow Errors 3 | . . 3 . Energy Discharges 2 | . . 2 . Parts Rejected 1 | . . 1 . Data Loss (minor) 3 | . 1 2 . Data Loss (major) 1 | . . 1 . Alerts 3 | . . 3 . Overload Shots . | . . . . Overflow Damage . | . . . . Projectiles . | . . . . Explosions . | . . . . Melee . | . . . . Knockbacks . | . . . . Impact . | . . . . Kinetic . | . . . . Secondary . | . . . . Self-Inflicted Damage . | . . . . Shots . | . . . . Rammed . | . . . . Targets Rammed . | . . . . Kicked . | . . . . Crushed . | . . . . Highest Temperature 153 | . . 153 . Average Temperature 70 | . . 70 . Received Heat Transfer 90 | . . 90 . Siege Activations . | . . . . Martial Activations . | . . . . Shielding Activations . | . . . . Robots Disrupted . | . . . . Combat Hostiles . | . . . . Robots Corrupted . | . . . . Combat Hostiles . | . . . . Parts Fried . | . . . . Impact Corruptions . | . . . . Robots Melted . | . . . . Combat Hostiles . | . . . . Parts Melted . | . . . . Heat Transferred . | . . . . Parts Sabotaged . | . . . . Parts Stolen . | . . . . Parts Stripped . | . . . . Power Chain Reactions . | . . . . Alert | -11 -10 -10 -8 ------- Run | Yrd Mat Sub Scr Maximum Alert Level . | . . . . Low Security (%) 100 | 100 100 . . Level 1 . | . . . . Level 2 . | . . . . Level 3 . | . . . . Level 4 . | . . . . Level 5 . | . . . . High Security . | . . . . Max Security . | . . . . Peak Influence 12 | 10 12 . . Initial . | . . . . Average 1 | 1 1 . . Influence Increases 90 | 25 25 40 . Destroy 0b10 Robot/C 40 | . . 40 . Destroy 0b10 Robot/NC 35 | 25 10 . . Destroy Leader 4 | . 4 . . Successful Hack 11 | . 11 . . Influence Decreases 90 | 25 25 22 18 Entered New Map 18 | . . . 18 Time Decay 62 | 25 25 12 . Lost Part 10 | . . 10 . Squads Dispatched 2 | . 2 . . Investigation 1 | . 1 . . Extermination . | . . . . Reinforcement 1 | . 1 . . Assault . | . . . . Garrison . | . . . . Intercept . | . . . . Searches Triggered . | . . . . Construction Impeded . | . . . . Haulers Reinforced . | . . . . Active Scanning Responses . | . . . . Cargo Convoy Interrupts . | . . . . Stealth | -11 -10 -10 -8 --------- Run | Yrd Mat Sub Scr Distress Signals . | . . . . Communications Jammed . | . . . . Distress Signals . | . . . . Times Spotted 16 | . 2 12 2 Peak Tracking Total 3 | . 1 3 3 Tactical Retreats . | . . . . Traps | -11 -10 -10 -8 ------- Run | Yrd Mat Sub Scr Traps Triggered 2 | . 1 1 . Indirectly . | . . . . Trap Hack Attempts . | . . . . Triggered . | . . . . Disarmed . | . . . . Reprogrammed . | . . . . Reused 1 | . . 1 . Traps Extracted . | . . . . Installed 1 | . . 1 . Triggered . | . . . . Machines | -11 -10 -10 -8 ---------- Run | Yrd Mat Sub Scr Machines Disabled 1 | . . . 1 Max in Single Turn . | . . . . Machines Repaired . | . . . . Machines Dismantled . | . . . . Machines Sabotaged . | . . . . Overloaded Fab Kills . | . . . . Hacking | -11 -10 -10 -8 --------- Run | Yrd Mat Sub Scr Machines Accessed 2 | . 2 . . Terminals 2 | . 2 . . Fabricators . | . . . . Repair Stations . | . . . . Recycling Units . | . . . . Scanalyzers . | . . . . Garrison Access . | . . . . Total Hacks 4 | . 4 . . Successful 3 | . 3 . . Failed 1 | . 1 . . Catastrophic . | . . . . Database Lockouts . | . . . . Manual 7 | . 7 . . Terminals 4 | . 4 . . Fabricators . | . . . . Repair Stations . | . . . . Recycling Units . | . . . . Scanalyzers . | . . . . Garrison Access . | . . . . Terminal Hacks 2 | . 2 . . Part Schematic 1 | . 1 . . Robot Analysis 1 | . 1 . . Fabricator Hacks . | . . . . Repair Station Hacks . | . . . . Recycling Unit Hacks . | . . . . Scanalyzer . | . . . . Garrison Access Hacks . | . . . . Unauthorized Hacks 1 | . 1 . . Terminals 1 | . 1 . . Botnet 1 | . 1 . . Fabricators . | . . . . Repair Stations . | . . . . Recycling Units . | . . . . Scanalyzers . | . . . . Garrison Access . | . . . . Data Cores Recovered . | . . . . Used . | . . . . Hacking Detections 2 | . 2 . . Full Trace Events . | . . . . Feedback Events . | . . . . Feedback Blocked . | . . . . Robot Schematics Acquired . | . . . . Robots Built . | . . . . Authchips . | . . . . Time . | . . . . Total Robot Build Rating . | . . . . Part Schematics Acquired 1 | . 1 . . Parts Built . | . . . . Authchips . | . . . . Time . | . . . . Total Part Build Rating . | . . . . Part Studies Acquired . | . . . . Parts Repaired . | . . . . Time . | . . . . Parts Recycled . | . . . . Recycled Matter . | . . . . Retrieved Matter . | . . . . Retrieved Components . | . . . . Parts Scanalyzed . | . . . . Part Schematics Acquired . | . . . . Parts Damaged . | . . . . Bothacking | -11 -10 -10 -8 ------------ Run | Yrd Mat Sub Scr Used RIF Installer . | . . . . Robots Hacked . | . . . . Non-combat . | . . . . Combat . | . . . . Robot Hacks Applied . | . . . . Relay Couplers Released . | . . . . Fabnet Peak Effective % . | . . . . Robots Rewired . | . . . . Allies Hacked . | . . . . Hacks Repelled . | . . . . Allies | -11 -10 -10 -8 -------- Run | Yrd Mat Sub Scr Total Allies 1 | . . . 1 Largest Group 1 | . . . 1 Highest-Rated Group 464 | . . . 464 Highest-Rated Ally 464 | . . . 464 Total Orders . | . . . . Ally Attacks 8 | . . . 8 Total Damage 514 | . . . 514 Kills 2 | . . . 2 Allies Corrupted . | . . . . Allies Melted . | . . . . X0-1V1 Amusement Gains 52 | . 22 10 20 Average Entertainment 11 | . 22 11 5 Good Acts 8 | . . 8 . Bad Acts 5 | . . 5 . Intel | -11 -10 -10 -8 ------- Run | Yrd Mat Sub Scr Active Infowar (turns) 211 | . 211 . . T.N.C. 211 | . 211 . . Robot Analysis Total 1 | . 1 . . Derelict Logs Recovered 1 | . . . 1 Drone Launches . | . . . . Drone Recoveries . | . . . . Exploration | -11 -10 -10 -8 ------------- Run | Yrd Mat Sub Scr Turns Passed 2742 | 92 314 1670 666 Spaces Moved 1902 | 57 354 949 542 Core 4 | 4 . . . Treads 994 | . . 885 109 Legs . | . . . . Wheels 904 | 53 354 64 433 Hover . | . . . . Flight . | . . . . Fastest Speed 50 | 50 80 80 110 Average Speed 128 | 77 80 154 120 Slowest Speed 160 | 80 80 160 160 Overloaded Moves . | . . . . Propulsion Burnouts . | . . . . Robots Hopped . | . . . . Potential Cave-ins . | . . . . Cave-ins Triggered . | . . . . Exploration Rate (%) 40 | 4 72 43 44 Regions Visited 3 Branch Regions 2 Pre-discovered Areas 1 | . . . 1 Known Exits Taken . | . . . . Unknown Exits Taken 3 | 1 1 1 . Scrap Searched 7 | . . 2 5 Spaces Dug 16 | . . 16 . Terrain Destroyed 16 | . . 16 . Melee 16 | . . 16 . Projectile . | . . . . AOE . | . . . . Terrain Rammed . | . . . . Walls Destroyed . | . . . . Machines Disabled . | . . . . Actions | -11 -10 -10 -8 --------- Run | Yrd Mat Sub Scr Total 2084 | 81 375 1071 557 Wait 64 | 3 8 52 1 Move 1899 | 56 353 948 542 Hop . | . . . . Pick Up 18 | 5 5 5 3 Fast Attach 9 | 6 1 2 . Attach . | . . . . Detach . | . . . . Swap 17 | . 2 11 4 Drop 12 | . 1 6 5 Fire 39 | 11 5 21 2 Melee 25 | . . 25 . Ram . | . . . . Kick . | . . . . Crush . | . . . . Escape Stasis . | . . . . Rewire . | . . . . Trap 1 | . . 1 . Miscellaneous . | . . . . Route ------- -11/Scrapyard -10/Materials (discovered 6 exits: [*Mat x3] / [*Min x2] / [*Sub]) -10/Subcaves (discovered 3 exits: Mat / [*Scr x2]) -8/Scraptown (discovered 1 exit: [*Fac]) History --------- Turn | Location | Event 10 | -11/Scrapyard | Discovered new exit (range 14) 93 | -11/Scrapyard | Entered Materials 94 | -10/Materials | Met a group of wandering Federalists 115 | -10/Materials | Discovered new exit (range 8) 222 | -10/Materials | Discovered new exit (range 13) 277 | -10/Materials | Discovered new exit (range 16) 307 | -10/Materials | Discovered new exit (range 12) 314 | -10/Materials | Build established: Mutant 336 | -10/Materials | Discovered new exit (range 4) 402 | -10/Materials | Discovered new exit (range 4) 404 | -10/Materials | Prayed at D.C.S.S. Altar Unit 407 | -10/Materials | Entered Subcaves 408 | -10/Subcaves | Continued accompanying wandering Federalists (4) 408 | -10/Subcaves | Approached by a straggling Scientist 414 | -10/Subcaves | Scientist uncovered a shortcut to Scraptown 430 | -10/Subcaves | Energy generation permanently improved by X0-1V1 (+10; -100 max core) 461 | -10/Subcaves | X0-1V1 sent you into danger 551 | -10/Subcaves | Shifting Twisted Machinery released Ripper 606 | -10/Subcaves | Shifting Twisted Machinery released Shrapnel Trap 917 | -10/Subcaves | Ambushed by angry Subdweller bent on revenge 1264 | -10/Subcaves | Core integrity fell below 50% 1381 | -10/Subcaves | X0-1V1 activates XOMVISION 1387 | -10/Subcaves | Ambushed by Subdwellers from Twisted Machinery 1398 | -10/Subcaves | A swath of the cavern ceiling suddenly collapsed 2012 | -10/Subcaves | X0-1V1 upgraded hostiles (x1) 2013 | -10/Subcaves | Core integrity fell below 20% 2032 | -10/Subcaves | Identified exit to Materials 2032 | -10/Subcaves | X0-1V1 revealed exit location to -8/Materials 2077 | -10/Subcaves | Entered Scraptown 2326 | -8/Scraptown | Scanned Subdweller tech in exchange for log data 2329 | -8/Scraptown | Learned location of Extension (-5) 2344 | -8/Scraptown | Discovered new exit (range 11) 2509 | -8/Scraptown | Visited Comm Corps 2555 | -8/Scraptown | Visited SPCMW 2583 | -8/Scraptown | Visited Fellowship of the Rings 2617 | -8/Scraptown | Visited The Evicted 2724 | -8/Scraptown | X0-1V1 brought Wyrm Statue to life 2724 | -8/Scraptown | Attacked by Scraptown defenders 2743 | -8/Scraptown | Destroyed by Chaos Wyrm with Ragnarok Missile Launcher Last Messages --------------- 02724_ ANNOUNCEMENT: Intruder alert! Defend Scraptown! 02725_ NV-6AX(x): "This is not Wyrm! Who would do such a thing? And how?" 02726_ YX-OGY(j): "Defend Scraptown!" 02729_ Searching scrap... 02729_ Found Adv. Visual Processing Unit. 02729_ Found Targeting Computer. 02729_ Found Cryofiber Web. 02729_ Found Bolt Gun. 02729_ Found 34 Matter. 02730_ Acquired 34 matter. 02737_ Machine disabled. 02740_ HV Slug penetrates Machine. 02740_ HV Slug penetrates YX-OGY(j). 02742_ HV Slug penetrates Machine. 02742_ HV Slug penetrates YX-OGY(j). 02743_ NV-6AX(x) destroyed. 02743_ YX-OGY(j) destroyed. 02743_ Lgt. Nuclear Core destroyed. 02743_ X0-1V1 is amused. 02743_ X0-1V1 laughs nastily! Map ----- +----------------------------------------------------+ | "" #?" "##"" "#?# #??#" " "#?????????? | | "" #???" "##" "#?# #??#" " "#?????????? | | #???? "##" "#?# #??#"" "" ""#?????????? | | " #?????"?#""""""#?# #??#"" """"#?????????? | | "" #???????########?# #??#"""" """"#?????????? | | "" #######??#####???# #??#""""""""""??????????? | | "" """""""#?#"""#???# #??##########???????????? | | "" " "#?#" "#???# #???????????????????????? | | ## " """ "#?# #???# #???????????????????????? | | ?# " """ "#?# ##### #???????????????????????? | | ## " """ "??# ##??????????????????????? | | "" " """ "??# #??????????????????????? | | " " """ "??# ##??????????????????????? | | " " """ "??##### ### ##?????""????????????????? | | " " """ "#?????# #??##?????? "????????????????? | | """ "####### ######????" ????????????????? | | " " """ "##""""" """""#???? ""???????????????? | | " " "##""" " " "#???"" ""???????????????? | | " """""""##" [! "#??#"" ""#??????????????? | | "" #########""""" """""#??#"" ""#??? ??????????? | | ## ##??????###### ######??#" ""#??" ??????????? | | # ############# #########"" ""##"" ""????????? | | # ???????? | | # ! ???????? | | # ###"""" """"######"" % #??????????????? | | ######?#""" = """#????#" @=DD #??????????????? | | ???????#""" = ""#????#" DD% #??????????????? | | ???????#"""" ! "#????#" [ #??????????????? | | ???????#""""" "#????# " ! #??????????????? | | ???????#"""""""""#????#""" ##??????????????? | | ????????##########????##### ;#???????????????? | | | | | | | | | | | | | | | | | | | | | | | | | | | | | | | | | | | | | | | +----------------------------------------------------+ Best States ------------- Heat Dissipation 25 Energy Generation 25 Energy Capacity 1150 Matter Stores 650 Matter Capacity 700 Sight Range 16 Terrain Scan Density 10 Evasion (%) 44 Recoil Reduction 2 Item Schematics ----------------- Hcp. Storage Unit | -10/Materials | Hacked Robot Schematics ------------------ None Fabricated ------------ Nothing Repaired ---------- Nothing Studied --------- None Alien Tech Used ----------------- None Achievements -------------- None Challenges ------------ None Game ------ Seed PulseGravjetMindspike Manual? 0 Play Time 00:17:20 Cumulative 452.6 hours Start 2026.08.25 @ 13:45:16 End 2026.08.25 @ 14:02:17 Sessions 1 Manual Loads 0 Difficulty Rogue Special Mode None Game No. 339 Rogue 339 Adventurer 0 Explorer 0 Win Type - Total 9 Types 4/0/3/2/0/0/0/0/0/0 Lore% 43 Gallery% 69 Achievement% 56 Wizard Run 0 Options --------- Layout 2 ASCII 0 Keyboard 1 Movement Vi Keybinds 0 Fullscreen 2 Font 32/SmallcapsGlow Map View 77x44 Zoom Use 0% Tactical HUD 1 Map Filters NONE Filters NONE Steam 1 RUN: e2a2130f-1910-47f6-9bc0-c68f2c75070f